[Event "10th Iberoamericano-ch 2024"]
[Site "Linares"]
[Date "2024.09.25"]
[Round "1.6"]
[White "Santos Flores, Alberto"]
[Black "Fier, Alexandr"]
[Result "1-0"]
[ECO "E11"]
[WhiteElo "2168"]
[BlackElo "2551"]
[Annotator "RC"]
[PlyCount "135"]
[EventDate "2024.09.25"]
[EventType "swiss"]
[EventCountry "ESP"]
[SourceTitle "playchess.com"]
[Source "ChessBase"]
[SourceQuality "1"]
[TimeControl "5400+30"]

1. d4 {[%emt 0:00:04]} Nf6 {[%emt 0:00:59]} 2. c4 {[%emt 0:00:07]} e6 {[%emt 0:00:33]} 3. Nf3 {[%emt 0:00:07]} Bb4+ {[%emt 0:00:04]} 4. Bd2 {[%emt 0:00:11]} Qe7 {[%emt 0:00:22]} 5. g3 {[%emt 0:02:09]} Bxd2+ {[%emt 0:00:08]} 6. Qxd2 {[%emt 0:02:38]} Nc6 {[%emt 0:00:10]} 7. Nc3 {[%emt 0:00:56]} d5 {[%emt 0:00:05]} 8. e3 {[%emt 0:05:02]} dxc4 {[%emt 0:00:54]} 9. Bxc4 {[%emt 0:00:16]} O-O {[%emt 0:00:05]} 10. O-O {[%emt 0:02:40]} b6 {[%emt 0:00:15]} 11. Rfd1 {[%emt 0:01:44]} Bb7 {[%emt 0:00:09]} 12. Bf1 {[%emt 0:01:42]} Rfd8 {[%emt 0:00:41]} 13. Bg2 {[%emt 0:02:12]} Nb4 {[%emt 0:09:33]} 14. a3 {[%emt 0:04:28]} Nbd5 {[%emt 0:00:12]} 15. Nxd5 {[%emt 0:07:42]} Bxd5 {[%emt 0:01:06]} 16. Qe2 {[%emt 0:09:39]} c5 {[%emt 0:02:52]} 17. dxc5 {[%emt 0:00:13]} bxc5 {[%emt 0:00:03]} 18. Ne5 {[%emt 0:08:55]} Qb7 {[%emt 0:02:16]} 19. Bxd5 {[%emt 0:00:05]} exd5 {[%emt 0:00:04]} 20. b4 {[%emt 0:09:21]} Re8 {[%emt 0:04:37]} 21. Nd3 {[%emt 0:01:55]} c4 {[%emt 0:00:09]} 22. Nf4 {[%emt 0:00:02]} Re4 {[%emt 0:05:04]} 23. Qf3 {[%emt 0:01:02]} Rae8 {[%emt 0:00:55]} 24. Ne2 {[%emt 0:01:09]} Ng4 {[%emt 0:02:45]} 25. Nf4 {[%emt 0:13:13]} Nf6 {[%emt 0:01:47]} 26. Ne2 {[%emt 0:00:23]} Nd7 {[%emt 0:00:04]} 27. Nf4 {[%emt 0:00:43]} Nb6 {[%emt 0:02:27]} 28. Ra2 {[%emt 0:01:48]} Qa8 {[%emt 0:02:25]} 29. Kg2 {[%emt 0:01:04]} h6 {[%emt 0:03:23]} 30. Rad2 {[%emt 0:00:32]} c3 {[%emt 0:00:04]} 31. Rc2 {[%emt 0:01:04]} Rc8 {[%emt 0:01:40]} 32. Rd3 {[%emt 0:02:16]} Rcc4 {[%emt 0:01:56]} 33. Rcxc3 {[%emt 0:02:13]} Rxc3 {[%emt 0:03:42]} 34. Rxc3 {[%emt 0:00:01]} Nc4 {[%emt 0:00:05]} 35. Qd1 {[%emt 0:03:08]} Nb6 {[%emt 0:03:27]} 36. Kg1 {[%emt 0:00:36]} Rc4 {[%emt 0:00:03]} 37. Nxd5 {[%emt 0:01:16]} Rxc3 {[%emt 0:00:06]} 38. Nxc3 {[%emt 0:00:02]} Qc6 {[%emt 0:00:04]} 39. Qd8+ {[%emt 0:00:38]} Kh7 {[%emt 0:00:02]} 40. Qd3+ {[%emt 0:00:05]} Kg8 {[%emt 0:00:02]} 41. b5 {[%emt 0:00:40]} Qc5 {[%emt 0:02:21]} 42. Qd8+ {[%emt 0:00:01]} Kh7 {[%emt 0:00:06]} 43. Qd3+ {[%emt 0:00:01]} Kg8 {[%emt 0:00:12]} 44. a4 {[%emt 0:00:14]} Qa3 {[%emt 0:00:16]} 45. Qd8+ {[%emt 0:00:04]} Kh7 {[%emt 0:00:03]} 46. Qd3+ {[%emt 0:00:02]} Kg8 {[%emt 0:00:06]} 47. Qd4 {[%emt 0:01:45]} Kh7 {[%emt 0:00:03]} 48. Qe4+ {[%emt 0:00:13]} Kg8 {[%emt 0:00:05]} 49. Qd4 {[%emt 0:00:00]} Kh7 {[%emt 0:00:07]} 50. Kg2 {[%emt 0:00:23]} Kg8 {[%emt 0:00:03]} 51. h4 {[%emt 0:00:12]} Kh7 {[%emt 0:00:03]} 52. e4 {[%emt 0:01:32]} Kg8 {[%emt 0:00:04]} 53. Nd5 {[%emt 0:03:43]} Qxa4 {[%emt 0:02:27]} 54. Ne7+ {[%emt 0:01:50]} Kh7 {[%emt 0:00:03]} 55. Qxa4 {[%emt 0:02:51]} Nxa4 {[%emt 0:00:04]} 56. Nc6 {[%emt 0:00:03]} Nc3 {[%emt 0:00:13]} 57. Nxa7 {[%emt 0:00:15]} Nxe4 {[%emt 0:00:03]} 58. b6 {[%emt 0:00:27]} Nd6 {[%emt 0:00:10]} 59. Nb5 {[%emt 0:00:23]} Nb7 {[%emt 0:00:02]} 60. Kf3 {[%emt 0:00:39]} g5 {[%emt 0:00:41]} 61. hxg5 {[%emt 0:01:05]} hxg5 {[%emt 0:00:09]} 62. Ke4 {[%emt 0:00:12]} Kg6 {[%emt 0:00:03]} 63. Kd5 {[%emt 0:00:40]} f5 {[%emt 0:00:23]} 64. Nd6 {[%emt 0:00:07]} Na5 {[%emt 0:00:17]} 65. b7 {[%emt 0:00:07]} Nxb7 {[%emt 0:00:03]} 66. Nxb7 {[%emt 0:00:02]} Kh5 {[%emt 0:00:05]} 67. Ke5 {[%emt 0:00:49]} Kg4 {[%emt 0:00:05]} 68. Nd6 {[%emt 0:00:03]} 1-0

[Event "10th Iberoamericano-ch 2024"]
[Site "Linares"]
[Date "2024.09.25"]
[Round "1.14"]
[White "Maldonado Mena, German"]
[Black "Oro, Faustino"]
[Result "0-1"]
[ECO "D37"]
[WhiteElo "2123"]
[BlackElo "2434"]
[Annotator "TA"]
[PlyCount "38"]
[EventDate "2024.09.25"]
[EventType "swiss"]
[EventCountry "ESP"]
[SourceTitle "playchess.com"]
[Source "ChessBase"]
[SourceQuality "1"]
[TimeControl "5400+30"]

{[%evp 10,38,9,0,0,0,15,7,0,10,8,-2,-16,-35,-29,-83,-83,-88,-95,-93,-57,-306,-299,-391,-381,-388,-385,-372,-383,-389,-370]} 1. d4 {[%emt 0:02:08]} d5 {[%emt 0:00:11]} 2. c4 {[%emt 0:00:19]} e6 {[%emt 0:00:05]} 3. Nf3 {[%emt 0:05:47]} Nf6 {[%emt 0:00:33]} 4. Nc3 {[%emt 0:00:06]} dxc4 {[%emt 0:00:31]} 5. e3 {[%emt 0:07:25]} a6 {[%emt 0:00:07]} 6. a4 {[%emt 0:00:55]} b6 {[%emt 0:00:14]} 7. Bxc4 {[%emt 0:00:13]} Bb7 {[%emt 0:00:06]} 8. O-O {[%emt 0:00:42][%cal Oe3e4]} Bb4 {[%emt 0:00:42] Die Stellung ist ausgeglichen.} 9. Ne5 {[%emt 0:25:15][%cal Oe3e4]} O-O {[%emt 0:02:50]} 10. f3 {[%emt 0:00:34]} Bd6 {[%emt 0:08:25]} 11. Nd3 {[%emt 0:03:36]} Nc6 {[%emt 0:04:43]} 12. e4 {[%emt 0:06:09] [#]} (12. b3 $11 {hält das Gleichgewicht.}) 12... Be7 $1 $17 {[%emt 0:00:15][%cal Bd6e7,Be7b4,Bb4c3][%mdl 32]} ({Schlechter ist} 12... Nxd4 13. e5 $16) 13. d5 {[%emt 0:10:56]} Na5 {[%emt 0:00:33][%csl LRc4,LRd5]} 14. Ba2 {[%emt 0:00:08]} exd5 {[%emt 0:00:07]} 15. b4 $2 {[%emt 0:00:28] Ein Fehler, der zur Niederlage führt.} ({Besser ist} 15. e5 $15 Ne8 16. Rb1) 15... dxe4 $19 {[%emt 0:00:20]} 16. Ne5 {[%emt 0:06:26]} Bxb4 {[%emt 0:00:33] Schwarz steht auf Gewinn.} 17. Qxd8 {[%emt 0:00:32]} Raxd8 {[%emt 0:00:01]} ({Weniger gut wäre} 17... Rfxd8 18. Nxe4 Bd5 19. Nxf6+ gxf6 20. Ng4 Bc5+ 21. Be3 Bxe3+ 22. Nxe3 $19) 18. Nxe4 {[%emt 0:00:19]} Bxe4 {[%emt 0:00:06]} 19. fxe4 {[%emt 0:01:19]} Bc3 {[%emt 0:00:11] Gewichteter Fehlerwert: Weiß=0.42/Schwarz=0.03 (makellos) .  Verlustzug:     	Weiß=1     	---        Fehler:       	Weiß=1     	---        Ungenau:       	Weiß=1     	---        OK:         	Weiß=5     	Schwarz=4     Bester:       	---       	Schwarz=1     Stark:        	---       	Schwarz=1} ({Schwächer ist} 19... Nxe4 20. Be3 Nf6 21. Bf4 $19) 0-1

[Event "10th Iberoamericano-ch 2024"]
[Site "Linares"]
[Date "2024.09.25"]
[Round "2.7"]
[White "Blanco Acevedo, Cristobal Jose"]
[Black "Flores Quillas, Diego Saul Rodri"]
[Result "0-1"]
[ECO "B51"]
[WhiteElo "2301"]
[BlackElo "2451"]
[Annotator "RC"]
[PlyCount "109"]
[EventDate "2024.09.25"]
[EventType "swiss"]
[EventCountry "ESP"]
[SourceTitle "playchess.com"]
[Source "ChessBase"]
[SourceQuality "1"]
[TimeControl "5400+30"]

1. e4 {[%emt 0:04:10]} c5 {[%emt 0:00:19]} 2. Nf3 {[%emt 0:00:07]} d6 {[%emt 0:00:03]} 3. Bb5+ {[%emt 0:00:07]} Nd7 {[%emt 0:00:04]} 4. a4 {[%emt 0:00:06]} Ngf6 {[%emt 0:00:36]} 5. Nc3 {[%emt 0:00:10]} g6 {[%emt 0:01:37]} 6. d4 {[%emt 0:00:08]} cxd4 {[%emt 0:00:16]} 7. Nxd4 {[%emt 0:00:58]} Bg7 {[%emt 0:00:07]} 8. O-O O-O 9. Kh1 {[%emt 0:05:09]} Nc5 {[%emt 0:22:35]} 10. f3 {[%emt 0:00:33]} Bd7 {[%emt 0:00:12]} 11. Be3 {[%emt 0:01:42]} Rc8 {[%emt 0:00:37]} 12. Qd2 {[%emt 0:02:57]} a6 {[%emt 0:00:41]} 13. Be2 {[%emt 0:00:22]} Qa5 {[%emt 0:08:27]} 14. Ra3 {[%emt 0:08:27]} Qb6 {[%emt 0:02:43]} 15. Rb1 {[%emt 0:06:00]} Rfd8 {[%emt 0:13:19]} 16. Qd1 {[%emt 0:03:35]} Nxa4 {[%emt 0:14:21]} 17. Na2 {[%emt 0:03:23]} Qa5 {[%emt 0:01:48]} 18. b3 {[%emt 0:03:25]} Qc5 {[%emt 0:01:15]} 19. Rxa4 {[%emt 0:00:51]} Bxa4 {[%emt 0:00:06]} 20. bxa4 {[%emt 0:00:04]} e5 {[%emt 0:01:52]} 21. Nf5 {[%emt 0:00:48]} Qc4 {[%emt 0:00:05]} 22. Ne7+ {[%emt 0:03:30]} Kh8 {[%emt 0:00:33]} 23. Nxc8 {[%emt 0:03:15]} Rxc8 {[%emt 0:00:40]} 24. Bd3 {[%emt 0:02:05]} Qxa2 {[%emt 0:00:08]} 25. Rxb7 {[%emt 0:00:17]} d5 {[%emt 0:06:55]} 26. Qb1 {[%emt 0:00:44]} Qxb1+ {[%emt 0:01:45]} 27. Rxb1 {[%emt 0:00:05]} d4 {[%emt 0:00:03]} 28. Bd2 {[%emt 0:11:14]} Nd7 {[%emt 0:01:21]} 29. Kg1 {[%emt 0:05:45]} Nc5 {[%emt 0:00:20]} 30. a5 {[%emt 0:00:30]} h5 {[%emt 0:00:30]} 31. Kf1 {[%emt 0:00:30]} Kh7 {[%emt 0:00:30]} 32. Ke2 {[%emt 0:00:30]} Bh6 {[%emt 0:00:30]} 33. Be1 {[%emt 0:00:30]} Bg5 {[%emt 0:00:30]} 34. Rb4 {[%emt 0:00:30]} Be7 {[%emt 0:00:30]} 35. Rb6 {[%emt 0:00:30]} Bd8 {[%emt 0:00:30]} 36. Rd6 {[%emt 0:00:30]} Be7 {[%emt 0:00:30]} 37. Rd5 {[%emt 0:00:30]} f6 {[%emt 0:00:30]} 38. g3 {[%emt 0:00:30]} Rc6 {[%emt 0:00:30]} 39. Bd2 {[%emt 0:00:30]} Kg7 {[%emt 0:00:30]} 40. f4 {[%emt 0:00:30]} Nxd3 {[%emt 0:00:30]} 41. Kxd3 {[%emt 0:00:30]} Bd6 {[%emt 0:00:30]} 42. h3 {[%emt 0:00:30]} Kf7 {[%emt 0:00:30]} 43. f5 {[%emt 0:00:30]} g5 {[%emt 0:00:30]} 44. g4 {[%emt 0:00:30]} hxg4 {[%emt 0:00:30]} 45. hxg4 {[%emt 0:00:30]} Ke7 {[%emt 0:00:30]} 46. c3 {[%emt 0:00:30]} dxc3 {[%emt 0:00:30]} 47. Bxc3 {[%emt 0:00:30]} Rc8 {[%emt 0:00:30]} 48. Be1 {[%emt 0:00:30]} Rh8 {[%emt 0:00:30]} 49. Ke2 {[%emt 0:00:30]} Rh2+ {[%emt 0:00:30]} 50. Bf2 {[%emt 0:00:30]} Kd7 {[%emt 0:00:30]} 51. Kf3 {[%emt 0:00:30]} Kc6 {[%emt 0:00:30]} 52. Bb6 {[%emt 0:00:30]} Rh8 {[%emt 0:00:30]} 53. Kg2 {[%emt 0:00:30]} Rh7 {[%emt 0:00:30]} 54. Rd1 {[%emt 0:00:30]} Rd7 {[%emt 0:00:30]} 55. Rc1+ {[%emt 0:00:30]} 0-1

[Event "10th Iberoamericano-ch 2024"]
[Site "Linares"]
[Date "2024.09.25"]
[Round "2.10"]
[White "Oro, Faustino"]
[Black "Escalona Landi, Samid Eduardo"]
[Result "1-0"]
[ECO "B31"]
[WhiteElo "2434"]
[BlackElo "2305"]
[Annotator "RC"]
[PlyCount "87"]
[EventDate "2024.09.25"]
[EventType "swiss"]
[EventCountry "ESP"]
[SourceTitle "playchess.com"]
[Source "ChessBase"]
[SourceQuality "1"]
[TimeControl "5400+30"]

1. e4 {[%emt 0:00:02]} c5 {[%emt 0:05:06]} 2. Nf3 {[%emt 0:00:06]} Nc6 {[%emt 0:00:13]} 3. Bb5 {[%emt 0:00:06]} g6 {[%emt 0:01:21]} 4. O-O {[%emt 0:00:19]} Bg7 {[%emt 0:00:11]} 5. Bxc6 {[%emt 0:00:12]} dxc6 {[%emt 0:00:06]} 6. d3 {[%emt 0:00:11]} e5 {[%emt 0:00:03]} 7. a4 {[%emt 0:00:06]} a5 {[%emt 0:00:05]} 8. Na3 {[%emt 0:00:04]} Qc7 {[%emt 0:00:23]} 9. Be3 {[%emt 0:02:31]} b6 {[%emt 0:00:07]} 10. Qd2 {[%emt 0:02:15]} h6 {[%emt 0:00:26]} 11. Nc4 {[%emt 0:04:35]} Ne7 {[%emt 0:01:28]} 12. h3 {[%emt 0:08:23]} Be6 {[%emt 0:00:35]} 13. Rae1 {[%emt 0:01:58]} g5 {[%emt 0:02:27]} 14. c3 {[%emt 0:07:44]} O-O {[%emt 0:05:07]} 15. Qc2 {[%emt 0:02:55]} Ng6 {[%emt 0:00:52]} 16. Nfd2 {[%emt 0:01:07]} Rab8 {[%emt 0:13:59]} 17. Rd1 {[%emt 0:16:36]} Rfd8 {[%emt 0:29:49]} 18. Kh2 {[%emt 0:15:11]} Qd7 {[%emt 0:04:44]} 19. Nb3 {[%emt 0:02:40]} Qc7 {[%emt 0:20:32]} 20. Qe2 {[%emt 0:11:35]} Kh7 {[%emt 0:00:14]} 21. Kg1 {[%emt 0:00:39]} f5 {[%emt 0:03:38]} 22. exf5 {[%emt 0:01:50]} Bxf5 {[%emt 0:00:09]} 23. Rfe1 {[%emt 0:00:19]} Qf7 {[%emt 0:03:14]} 24. Qf3 {[%emt 0:05:19]} e4 {[%emt 0:01:35]} 25. dxe4 {[%emt 0:00:14]} Qxc4 {[%emt 0:02:49]} 26. Nd2 {[%emt 0:02:40]} Rxd2 {[%emt 0:00:31]} 27. Bxd2 {[%emt 0:00:04]} Be6 {[%emt 0:01:15]} 28. Qh5 {[%emt 0:01:30]} Bf6 {[%emt 0:01:04]} 29. Bc1 {[%emt 0:00:52]} Be7 {[%emt 0:00:55]} 30. h4 {[%emt 0:02:24]} Kg7 {[%emt 0:00:46]} 31. f4 {[%emt 0:01:02]} gxf4 {[%emt 0:00:45]} 32. Bxf4 {[%emt 0:00:10]} Rh8 {[%emt 0:00:59]} 33. Bd6 {[%emt 0:02:44]} Bxh4 {[%emt 0:00:50]} 34. Be5+ {[%emt 0:00:11]} Nxe5 {[%emt 0:00:08]} 35. Qxh4 {[%emt 0:00:08]} Ng6 {[%emt 0:00:33]} 36. Qg3 {[%emt 0:00:08]} Rc8 {[%emt 0:00:37]} 37. Rd6 {[%emt 0:00:30]} Kh7 {[%emt 0:00:30]} 38. Rf1 {[%emt 0:01:04]} Rg8 {[%emt 0:00:23]} 39. Rf6 {[%emt 0:00:41]} Bf7 {[%emt 0:00:45]} 40. Rd7 {[%emt 0:00:19]} Nh8 {[%emt 0:00:12]} 41. Qf4 {[%emt 0:00:10]} Rg6 {[%emt 0:01:02]} 42. Rxg6 {[%emt 0:00:16]} Kxg6 {[%emt 0:00:12]} 43. Rd6+ {[%emt 0:00:06]} Be6 {[%emt 0:00:10]} 44. Qf5+ {[%emt 0:00:00]} 1-0

[Event "10th Iberoamericano-ch 2024"]
[Site "Linares"]
[Date "2024.09.25"]
[Round "2.11"]
[White "Romero Calduch, Sergio"]
[Black "Rodriguez Vila, Andres"]
[Result "1/2-1/2"]
[ECO "A40"]
[WhiteElo "2276"]
[BlackElo "2417"]
[Annotator "RC"]
[PlyCount "101"]
[EventDate "2024.09.25"]
[EventType "swiss"]
[EventCountry "ESP"]
[SourceTitle "playchess.com"]
[Source "ChessBase"]
[SourceQuality "1"]
[TimeControl "5400+30"]

1. d4 {[%emt 0:01:56]} g6 {[%emt 0:00:41]} 2. c4 {[%emt 0:00:29]} Bg7 {[%emt 0:00:10]} 3. Nf3 {[%emt 0:00:12]} d6 {[%emt 0:00:57]} 4. h3 {[%emt 0:02:40]} f5 {[%emt 0:00:22]} 5. g4 {[%emt 0:08:25]} fxg4 {[%emt 0:00:56]} 6. hxg4 {[%emt 0:00:06]} Bxg4 {[%emt 0:00:19]} 7. Ng5 {[%emt 0:02:05]} h6 {[%emt 0:03:18]} 8. Rg1 {[%emt 0:04:48]} Qd7 {[%emt 0:02:19]} 9. Ne4 {[%emt 0:13:03]} Nc6 {[%emt 0:04:04]} 10. Be3 {[%emt 0:00:51]} Nf6 {[%emt 0:05:42]} 11. Nxf6+ {[%emt 0:11:41]} Bxf6 {[%emt 0:00:11]} 12. Nc3 {[%emt 0:04:00]} Bf5 {[%emt 0:01:09]} 13. Bg2 {[%emt 0:04:09]} e5 {[%emt 0:02:38]} 14. Nd5 {[%emt 0:04:54]} Bg7 {[%emt 0:00:18]} 15. dxe5 {[%emt 0:03:57]} Nxe5 {[%emt 0:00:15]} 16. Qb3 {[%emt 0:07:43]} c6 {[%emt 0:00:11]} 17. Nf4 {[%emt 0:00:58]} Qf7 {[%emt 0:00:19]} 18. Bd4 {[%emt 0:07:23]} O-O {[%emt 0:01:15]} 19. O-O-O {[%emt 0:04:05]} g5 {[%emt 0:01:58]} 20. Bxe5 {[%emt 0:01:14]} dxe5 {[%emt 0:00:46]} 21. Nd3 {[%emt 0:00:44]} e4 {[%emt 0:02:22]} 22. Nc5 {[%emt 0:06:36]} Qe7 {[%emt 0:00:45]} 23. Qe3 {[%emt 0:00:44]} Be5 {[%emt 0:01:30]} 24. Bh3 {[%emt 0:07:45]} Bxh3 {[%emt 0:02:41]} 25. Qxh3 {[%emt 0:00:12]} Bg7 {[%emt 0:03:46]} 26. Ne6 {[%emt 0:01:44]} Rxf2 {[%emt 0:00:47]} 27. Nxg7 {[%emt 0:00:51]} Qxg7 {[%emt 0:00:23]} 28. Qe6+ {[%emt 0:00:38]} Kh8 {[%emt 0:04:30]} 29. Rd7 {[%emt 0:00:31]} Qf6 {[%emt 0:00:20]} 30. Qxe4 {[%emt 0:00:33]} Qf4+ {[%emt 0:00:26]} 31. Qxf4 {[%emt 0:00:25]} Rxf4 {[%emt 0:00:02]} 32. Rh1 {[%emt 0:00:36]} Rxc4+ {[%emt 0:01:52]} 33. Kd2 {[%emt 0:00:27]} Rh4 {[%emt 0:00:11]} 34. Rf1 {[%emt 0:00:29]} Rf4 {[%emt 0:00:55]} 35. Rxf4 {[%emt 0:00:24]} gxf4 {[%emt 0:00:01]} 36. Rxb7 {[%emt 0:00:15]} a5 {[%emt 0:02:17]} 37. Ke1 {[%emt 0:00:31]} a4 {[%emt 0:01:38]} 38. Kf2 {[%emt 0:00:44]} c5 {[%emt 0:02:30]} 39. Kf3 {[%emt 0:00:41]} Re8 {[%emt 0:01:53]} 40. Ra7 {[%emt 0:00:29]} Re3+ {[%emt 0:00:11]} 41. Kxf4 {[%emt 0:00:25]} Rxe2 {[%emt 0:00:07]} 42. Rxa4 {[%emt 0:00:32]} Rxb2 {[%emt 0:00:02]} 43. Kf5 {[%emt 0:00:33]} Kg7 {[%emt 0:00:25]} 44. Ra7+ {[%emt 0:00:18]} Kf8 {[%emt 0:00:04]} 45. a4 {[%emt 0:00:43]} Ke8 {[%emt 0:00:13]} 46. Ke6 {[%emt 0:00:27]} Rb6+ {[%emt 0:00:38]} 47. Kd5 {[%emt 0:00:09]} h5 {[%emt 0:00:07]} 48. Rh7 {[%emt 0:00:40]} Ra6 {[%emt 0:00:14]} 49. Rxh5 {[%emt 0:00:35]} Rxa4 {[%emt 0:00:06]} 50. Rh8+ {[%emt 0:00:27]} Kf7 {[%emt 0:00:05]} 51. Kxc5 {[%emt 0:00:05]} 1/2-1/2

[Event "10th Iberoamericano-ch 2024"]
[Site "Linares"]
[Date "2024.09.25"]
[Round "2.39"]
[White "Arroyo Rodriguez, Jesus"]
[Black "Galvan Cipriani, Viviana"]
[Result "1/2-1/2"]
[ECO "B41"]
[WhiteElo "2006"]
[BlackElo "2141"]
[Annotator "RC"]
[PlyCount "158"]
[EventDate "2024.09.25"]
[EventType "swiss"]
[EventCountry "ESP"]
[SourceTitle "playchess.com"]
[Source "ChessBase"]
[SourceQuality "1"]
[TimeControl "5400+30"]

1. e4 {[%emt 0:01:50]} c5 {[%emt 0:00:06]} 2. Nf3 {[%emt 0:00:09]} e6 {[%emt 0:01:20]} 3. d4 {[%emt 0:00:09]} cxd4 {[%emt 0:00:06]} 4. Nxd4 {[%emt 0:00:03]} a6 {[%emt 0:00:05]} 5. c4 {[%emt 0:00:12]} Nf6 {[%emt 0:00:06]} 6. Nc3 {[%emt 0:00:13]} Bb4 {[%emt 0:00:31]} 7. Qc2 {[%emt 0:00:31]} Qc7 {[%emt 0:00:53]} 8. a3 {[%emt 0:02:01]} Bd6 {[%emt 0:05:39]} 9. h3 {[%emt 0:09:52]} Nc6 {[%emt 0:00:29]} 10. Be3 {[%emt 0:01:26]} O-O {[%emt 0:01:00]} 11. Rd1 {[%emt 0:07:15]} Bf4 {[%emt 0:05:56]} 12. Qd2 {[%emt 0:05:20]} Bxe3 {[%emt 0:05:33]} 13. Qxe3 {[%emt 0:00:03]} Ne5 {[%emt 0:00:55]} 14. b3 {[%emt 0:05:13]} b6 {[%emt 0:00:39]} 15. f4 {[%emt 0:03:30]} Nc6 {[%emt 0:00:16]} 16. e5 {[%emt 0:02:03]} Ne8 {[%emt 0:00:22]} 17. Bd3 {[%emt 0:02:53]} f5 {[%emt 0:02:09]} 18. g4 {[%emt 0:03:48]} Bb7 {[%emt 0:04:45]} 19. Rg1 {[%emt 0:01:05]} Nxd4 {[%emt 0:02:31]} 20. Qxd4 {[%emt 0:04:52]} fxg4 {[%emt 0:00:48]} 21. Ne4 {[%emt 0:10:06]} Rxf4 {[%emt 0:27:17]} 22. Nf6+ {[%emt 0:02:42]} Rxf6 {[%emt 0:00:06]} 23. exf6 {[%emt 0:00:21]} Nxf6 {[%emt 0:00:34]} 24. hxg4 {[%emt 0:06:14]} Qc5 {[%emt 0:04:15]} 25. Qxc5 {[%emt 0:01:06]} bxc5 {[%emt 0:00:08]} 26. g5 {[%emt 0:00:21]} Ne8 {[%emt 0:00:08]} 27. Rd2 {[%emt 0:00:49]} g6 {[%emt 0:01:59]} 28. Bf1 {[%emt 0:01:53]} d5 {[%emt 0:12:07]} 29. Bg2 {[%emt 0:02:49]} Nc7 {[%emt 0:01:10]} 30. Rf1 {[%emt 0:00:51]} Re8 {[%emt 0:03:44]} 31. Rdf2 {[%emt 0:03:35]} Re7 {[%emt 0:00:08]} 32. Rf8+ {[%emt 0:00:51]} Kg7 {[%emt 0:00:04]} 33. Rb8 {[%emt 0:01:23]} Ne8 {[%emt 0:04:27]} 34. Kd1 {[%emt 0:00:25]} h6 {[%emt 0:05:21]} 35. gxh6+ {[%emt 0:01:41]} Kxh6 {[%emt 0:00:14]} 36. Re1 {[%emt 0:01:39]} Nf6 {[%emt 0:00:58]} 37. cxd5 {[%emt 0:03:00]} Nxd5 {[%emt 0:00:57]} 38. Kc1 {[%emt 0:00:48]} a5 {[%emt 0:05:18]} 39. Be4 {[%emt 0:03:15]} Kg7 {[%emt 0:04:28]} 40. Rg1 {[%emt 0:03:44]} Nf4 {[%emt 0:00:48]} 41. Re1 {[%emt 0:01:28]} Nd5 {[%emt 0:01:37]} 42. Kb2 {[%emt 0:00:32]} Rf7 {[%emt 0:00:59]} 43. Rh1 {[%emt 0:02:13]} Rf2+ {[%emt 0:00:18]} 44. Kc1 {[%emt 0:00:14]} Ba6 {[%emt 0:00:36]} 45. Bxd5 {[%emt 0:06:12]} exd5 {[%emt 0:00:04]} 46. Ra8 {[%emt 0:00:08]} Bd3 {[%emt 0:00:19]} 47. Rxa5 {[%emt 0:01:40]} Rc2+ {[%emt 0:00:10]} 48. Kd1 {[%emt 0:00:10]} Ra2 {[%emt 0:01:32]} 49. Rxc5 {[%emt 0:01:26]} Be4 {[%emt 0:00:12]} 50. Re1 {[%emt 0:00:34]} Rxa3 {[%emt 0:00:37]} 51. Rb5 {[%emt 0:00:48]} Kf6 {[%emt 0:00:16]} 52. Kd2 {[%emt 0:00:11]} Ke5 {[%emt 0:00:44]} 53. Rg1 {[%emt 0:00:45]} Ra2+ {[%emt 0:00:39]} 54. Ke3 {[%emt 0:00:33]} Ra3 {[%emt 0:00:35]} 55. Rg5+ {[%emt 0:00:24]} Kf6 {[%emt 0:00:29]} 56. Kf4 {[%emt 0:00:11]} Ra6 {[%emt 0:00:30]} 57. Rgxd5 {[%emt 0:00:47]} Bxd5 {[%emt 0:00:04]} 58. Rxd5 {[%emt 0:00:08]} Rb6 {[%emt 0:00:01]} 59. Rd3 {[%emt 0:00:16]} Rb4+ {[%emt 0:00:07]} 60. Kf3 {[%emt 0:00:29]} Kg5 {[%emt 0:00:08]} 61. Rc3 {[%emt 0:00:37]} Kh5 {[%emt 0:00:26]} 62. Kg3 {[%emt 0:00:28]} Rd4 {[%emt 0:00:18]} 63. Kh3 {[%emt 0:00:17]} Rh4+ {[%emt 0:01:24]} 64. Kg3 {[%emt 0:00:03]} Rg4+ {[%emt 0:00:06]} 65. Kh3 {[%emt 0:00:11]} Rg1 {[%emt 0:00:13]} 66. Kh2 {[%emt 0:00:26]} Rd1 {[%emt 0:00:46]} 67. Kh3 {[%emt 0:00:18]} g5 {[%emt 0:00:23]} 68. Kg3 {[%emt 0:00:16]} Rb1 {[%emt 0:01:20]} 69. Rd3 {[%emt 0:00:08]} Rg1+ {[%emt 0:00:17]} 70. Kh2 {[%emt 0:00:16]} Rc1 {[%emt 0:01:19]} 71. Kg3 {[%emt 0:00:06]} Kg6 {[%emt 0:00:29]} 72. Rd6+ {[%emt 0:01:39]} Kf5 {[%emt 0:00:09]} 73. Rd5+ {[%emt 0:01:04]} Kf6 {[%emt 0:00:14]} 74. Kg4 {[%emt 0:01:14]} Rg1+ {[%emt 0:00:17]} 75. Kf3 {[%emt 0:00:08]} Kg6 {[%emt 0:00:38]} 76. Rd3 {[%emt 0:01:14]} Kh5 {[%emt 0:00:42]} 77. Kf2 {[%emt 0:00:13]} Rg4 {[%emt 0:00:10]} 78. Rh3+ {[%emt 0:00:38]} Kg6 {[%emt 0:00:09]} 79. Rc3 {[%emt 0:00:16]} Rf4+ {[%emt 0:00:14]} 1/2-1/2